fUST/lending_fUST_20250822
["ID","MTS","AMOUNT","RATE_DAILY","PERIOD"]
[380656181,1755839446634,-581.2325412,0.00026658,2]
[380656183,1755839446643,-542.244725,0.00026658,2]
[380656185,1755839446653,-578.8804998,0.00026658,2]
[380656187,1755839446662,-168.0,0.00026724,7]
[380656189,1755839446671,-168.0,0.00026885,2]
[380656191,1755839446681,-461.15333587,0.0002689,2]
[380656193,1755839446690,-1118.25551626,0.0002689,2]
[380656195,1755839446700,-7166.87106884,0.0002689,2]
[380656197,1755839446710,-168.0,0.00026918,2]
[380656199,1755839446719,-500.0,0.00026973,2]
[380656201,1755839446728,-500.0,0.00026973,2]
[380656203,1755839446737,-503.29259184,0.00026973,2]
[380656205,1755839446747,-340.01,0.0002698,3]
[380656207,1755839446756,-395.49,0.0002698,3]
[380656209,1755839446767,-197.74,0.0002698,3]
[380656211,1755839446777,-593.26,0.0002698,3]
[380656213,1755839446787,-793.51,0.0002698,10]
[380656215,1755839446796,-661.26,0.0002698,10]
[380656217,1755839446805,-500.0,0.00026988,2]
[380656219,1755839446814,-500.0,0.00026988,2]
[380656221,1755839446824,-650.65290353,0.00026988,2]
[380656223,1755839446833,-500.0,0.00026988,2]
[380656225,1755839446843,-205.18553771,0.00026988,2]
[380656227,1755839446852,-178.11410806,0.00026988,2]
[380656229,1755839446861,-500.0,0.00026988,2]
[380656231,1755839446871,-500.0,0.00026988,2]
[380656233,1755839446880,-500.0,0.00026988,2]
[380656235,1755839446889,-500.0,0.00026988,2]
[380656237,1755839446898,-478.20070642,0.00026988,2]
[380656239,1755839446907,-500.0,0.00026988,2]
[380656241,1755839446916,-500.0,0.00026988,2]
[380656243,1755839446928,-500.0,0.00026988,2]
[380656245,1755839446937,-299.37534372,0.00026988,2]
[380656247,1755839446946,-500.0,0.00026988,2]
[380656249,1755839446955,-500.0,0.00026988,2]
[380656251,1755839446964,-500.0,0.00026988,2]
[380656253,1755839446978,-375.38853726,0.00026988,2]
[380656255,1755839446987,-598.20047111,0.00026988,2]
[380656257,1755839446996,-500.0,0.00026988,2]
[380656259,1755839447006,-500.0,0.00026988,2]
[380656261,1755839447017,-500.0,0.00026988,2]
[380656263,1755839447026,-371.49171141,0.00026988,2]
[380656265,1755839447035,-500.0,0.00026988,2]
[380656267,1755839447044,-500.0,0.00026988,2]
[380656269,1755839447053,-373.4953461,0.00026988,2]
[380656271,1755839447063,-500.0,0.00026988,2]
[380656273,1755839447072,-500.0,0.00026988,2]
[380656275,1755839447081,-500.0,0.00026988,2]
[380656277,1755839447091,-500.0,0.00026988,2]
[380656279,1755839447100,-493.84701203,0.00026988,2]
[380656281,1755839447110,-500.0,0.00026988,2]
[380656283,1755839447119,-500.0,0.00026988,2]
[380656285,1755839447128,-500.0,0.00026988,2]
[380656287,1755839447138,-500.0,0.00026988,2]
[380656289,1755839447148,-500.0,0.00026988,2]
[380656291,1755839447157,-612.16763358,0.00026989,2]
[380656293,1755839447167,-3567.07,0.00026989,2]
[380656295,1755839447176,-500.0,0.0002699,7]
[380656297,1755839447185,-450193.890112,0.0002699,2]
[380656299,1755839447195,-12061.005583,0.0002699,2]
[380656301,1755839447204,-151.0,0.0002699,7]
[380656303,1755839447214,-151.0,0.0002699,7]
[380656305,1755839447223,-151.0,0.0002699,7]
[380656307,1755839447232,-161.293087,0.0002699,7]
[380656309,1755839447241,-161.293087,0.0002699,7]
[380656311,1755839447251,-161.293087,0.0002699,7]
[380656313,1755839447260,-161.293087,0.0002699,7]
[380656315,1755839447271,-151.0,0.0002699,7]
[380656317,1755839447280,-151.0,0.0002699,7]
[380656319,1755839447291,-151.0,0.0002699,7]
[380656321,1755839447309,-254.818577,0.0002699,7]
[380656323,1755839447322,-151.0,0.0002699,7]
[380656325,1755839447332,-151.0,0.0002699,7]
[380656327,1755839447341,-151.0,0.0002699,7]
[380656329,1755839447351,-152.795762,0.0002699,7]
[380656331,1755839447360,-151.0,0.0002699,7]
[380656333,1755839447369,-151.0,0.0002699,7]
[380656335,1755839447378,-165.177087,0.0002699,7]
[380656336,1755839447387,-461.15333584,0.00026992,2]
[380656338,1755839447397,-4553.42867565,0.00027,4]
[380656340,1755839447411,-1374.35,0.00027,4]
[380656505,1755839451400,516.47782415,0.000199,2]
[380656592,1755839454454,160.0,0.000273,120]
[380656845,1755839472796,160.0,0.000273,120]
[380656846,1755839530600,167.89016777,0.0002,3]
[380656847,1755839614074,2487.83713845,0.000199,2]
[380656848,1755839778910,2424.80605653,0.000199,2]
[380656849,1755839943384,2358.68274351,0.000199,2]
[380656850,1755840050766,5000.0,0.0002,2]
[380656851,1755840113067,2280.05998519,0.000199,2]
[380656852,1755840278416,2204.05798579,0.000199,2]
[380656853,1755840341136,-287.06608999,0.000207,2]
[380656854,1755840341156,-160.0,0.000208,2]
[380656855,1755840341178,-1255.90532989,0.000208,2]
[380656856,1755840341199,-108.14861181,0.000208,2]
[380656858,1755840428127,-183.63534026,0.00020592,2]
[380656859,1755840443533,2130.58938637,0.000199,2]
[380656873,1755840613597,2059.56974009,0.000199,2]
[380656891,1755840631984,-405.69493372,0.000208,2]
[380656893,1755840631993,-2317.62129926,0.00021001,5]
[380656895,1755840632003,-300.0,0.00022118,2]
[380656897,1755840632012,-215.90555669,0.00022119,2]
[380656899,1755840632022,-126.23821033,0.00022119,2]
[380656901,1755840632035,-33.76178967,0.00022119,2]
[380656903,1755840632045,-160.0,0.00022119,2]
[380656905,1755840632054,-160.0,0.00022119,2]
[380656907,1755840632064,-160.0,0.00022119,2]
[380656909,1755840632073,-216.99125601,0.00022119,2]
[380656911,1755840632083,-160.0,0.00022119,2]
[380656913,1755840632093,-2059.56973994,0.0002212,2]
[380656915,1755840632102,-844.33851978,0.00022151,2]
[380656918,1755840632111,-160.0,0.00022151,2]
[380656921,1755840632121,-232.32572668,0.00022152,2]
[380656924,1755840632130,-160.0,0.00023,2]
[380656927,1755840632138,-2059.56973994,0.00023229,2]
[380656930,1755840632148,-1141.40204872,0.00023721,2]
[380656932,1755840632159,-732.50097527,0.00023721,2]
[380656934,1755840632168,-187.3903024,0.00023727,2]
[380656936,1755840632177,-72.76716435,0.00023746,2]
[380656938,1755840632188,-885.76809617,0.00023746,2]
[380656940,1755840632197,-187.3903024,0.00023748,2]
[380656942,1755840632206,-111.39160143,0.00023771,2]
[380656963,1755840637966,-1762.51142256,0.00023771,2]
[380656965,1755840637976,-326.90916731,0.00023789,2]
[380656967,1755840637988,-426.885,0.00023789,2]
[380656981,1755840638111,-204.74109321,0.00023789,2]
[380656983,1755840638120,-1923.64296067,0.00024,60]
[380657177,1755840640033,-5919.39102749,0.00024,60]
[380657179,1755840640043,-480.0,0.00024657,10]
[380657181,1755840640052,-480.0,0.00024657,10]
[380657183,1755840640061,-480.0,0.00024657,10]
[380657185,1755840640071,-318.45805179,0.00024657,10]
[380657187,1755840640080,-480.0,0.00024657,10]
[380657189,1755840640090,-480.0,0.00024657,10]
[380657191,1755840640099,-480.0,0.00024657,10]
[380657193,1755840640108,-480.0,0.00024657,10]
[380657195,1755840640117,-483.57311543,0.00024657,10]
[380657197,1755840640128,-480.0,0.00024657,10]
[380657199,1755840640138,-480.0,0.00024657,10]
[380657201,1755840640148,-231.75292967,0.00024657,10]
[380657203,1755840640157,-480.0,0.00024657,10]
[380657205,1755840640167,-480.0,0.00024657,10]
[380657207,1755840640177,-480.0,0.00024657,10]
[380657209,1755840640186,-480.0,0.00024657,10]
[380657211,1755840640196,-525.33014718,0.00024657,10]
[380657213,1755840640205,-483.8503858,0.00024657,10]
[380657215,1755840640215,-480.0,0.00024657,10]
[380657217,1755840640224,-480.0,0.00024657,10]
[380657219,1755840640233,-480.0,0.00024657,10]
[380657221,1755840640243,-480.0,0.00024657,10]
[380657223,1755840640252,-480.0,0.00024657,10]
[380657225,1755840640262,-480.0,0.00024657,10]
[380657227,1755840640271,-480.0,0.00024657,10]
[380657229,1755840640280,-306.06830243,0.00024657,10]
[380657231,1755840640289,-480.0,0.00024657,10]
[380657233,1755840640299,-366.12052355,0.00024657,10]
[380657235,1755840640308,-480.92967837,0.00024657,10]
[380657236,1755840640318,-563.26,0.00024657,10]
[380657239,1755840640329,-480.0,0.00024657,10]
[380657240,1755840640339,-480.0,0.00024657,10]
[380657242,1755840640349,-435.94593672,0.00024657,10]
[380657244,1755840640358,-480.0,0.00024657,10]
[380657246,1755840640367,-480.93667913,0.00024657,10]
[380657248,1755840640376,-417.15472785,0.00024657,10]
[380657250,1755840640386,-490.97329101,0.00024657,10]
[380657252,1755840640395,-481.44747903,0.00024657,10]
[380657254,1755840640405,-535.38,0.00024657,10]
[380657256,1755840640415,-480.0,0.00024657,10]
[380657258,1755840640424,-492.55719308,0.00024657,10]
[380657260,1755840640433,-499.38557365,0.00024657,10]
[380657262,1755840640442,-480.0,0.00024657,10]
[380657264,1755840640452,-480.0,0.00024657,10]
[380657266,1755840640463,-480.0,0.00024657,10]
[380657268,1755840640473,-528.9579881,0.00024657,10]
[380657270,1755840640481,-480.0,0.00024657,10]
[380657272,1755840640491,-480.0,0.00024657,10]
[380657274,1755840640501,-480.0,0.00024657,10]
[380657287,1755840640613,-480.0,0.00024657,10]
[380657289,1755840640623,-480.0,0.00024657,2]
[380657291,1755840640632,-480.0,0.00024657,10]
[380657293,1755840640642,-480.0,0.00024657,10]
[380657295,1755840640651,-480.0,0.00024657,10]
[380657297,1755840640661,-480.0,0.00024657,10]
[380657299,1755840640670,-480.0,0.00024657,10]
[380657301,1755840640679,-480.0,0.00024657,10]
[380657303,1755840640689,-480.0,0.00024657,10]
[380657305,1755840640698,-480.0,0.00024657,10]
[380657307,1755840640708,-460.96488872,0.00024657,10]
[380657309,1755840640717,-480.0,0.00024931,10]
[380657311,1755840640727,-481.60127282,0.00024931,10]
[380657313,1755840640736,-481.40298441,0.00024931,10]
[380657314,1755840640745,-480.0,0.00024931,10]
[380657317,1755840640755,-480.0,0.00024931,10]
[380657318,1755840640764,-480.0,0.00024931,10]
[380657320,1755840640773,-273.27219498,0.00024931,10]
[380657322,1755840640782,-480.0,0.00024931,10]
[380657324,1755840640791,-480.0,0.00024931,10]
[380657326,1755840640801,-480.0,0.00024931,10]
[380657328,1755840640810,-480.0,0.00024931,10]
[380657330,1755840640820,-480.0,0.00024931,10]
[380657332,1755840640829,-480.0,0.00024931,10]
[380657334,1755840640839,-480.0,0.00024931,10]
[380657336,1755840640848,-480.0,0.00024931,10]
[380657338,1755840640858,-480.0,0.00024931,10]
[380657340,1755840640869,-480.0,0.00024931,10]
[380657342,1755840640879,-480.0,0.00024931,10]
[380657344,1755840640888,-480.0,0.00024931,10]
[380657346,1755840640897,-480.0,0.00024931,10]
[380657348,1755840640907,-563.26,0.00024931,10]
[380657350,1755840640915,-480.0,0.00024931,10]
[380657352,1755840640925,-480.0,0.00024931,10]
[380657354,1755840640934,-480.0,0.00024931,10]
[380657356,1755840640943,-535.38,0.00024931,10]
[380657358,1755840640953,-480.0,0.00024931,10]
[380657360,1755840640962,-480.0,0.00024931,10]
[380657362,1755840640971,-480.0,0.00024931,10]
[380657364,1755840640980,-480.0,0.00024931,10]
[380657366,1755840640989,-480.0,0.00024931,10]
[380657368,1755840640999,-480.0,0.00024931,10]
[380657370,1755840641008,-480.0,0.00024931,10]
[380657372,1755840641017,-441.88219619,0.00024931,10]
[380657374,1755840641027,-480.0,0.00024931,2]
[380657376,1755840641037,-480.0,0.00024931,10]
[380657378,1755840641046,-464.82710566,0.00024931,10]
[380657380,1755840641056,-480.0,0.00024931,10]
[380657382,1755840641065,-480.0,0.00024931,10]
[380657384,1755840641076,-326.88027495,0.00024931,10]
[380657386,1755840641085,-481.72854319,0.00024931,10]
[380657388,1755840641095,-480.0,0.00024931,10]
[380657390,1755840641105,-500.0,0.00025204,2]
[380657392,1755840641114,-500.0,0.00025204,2]
[380657393,1755840641123,-500.0,0.00025204,2]
[380657395,1755840641132,-500.43960614,0.00025204,2]
[380657396,1755840641141,-261.74159377,0.00025204,2]
[380657398,1755840641150,-152.61059401,0.00025204,2]
[380657400,1755840641159,-500.0,0.00025204,2]
[380657401,1755840641169,-500.0,0.00025204,2]
[380657403,1755840641178,-572.32103886,0.00025204,2]
[380657405,1755840641187,-500.0,0.00025204,2]
[380657406,1755840641196,-500.0,0.00025204,2]
[380657408,1755840641205,-415.1489268,0.00025204,2]
[380657410,1755840641215,-8945.42262027,0.00025205,7]
[380657411,1755840641224,-480.0,0.00025205,10]
[380657413,1755840641234,-480.0,0.00025205,10]
[380657415,1755840641243,-480.0,0.00025205,10]
[380657416,1755840641253,-480.0,0.00025205,10]
[380657418,1755840641262,-480.0,0.00025205,10]
[380657420,1755840641271,-480.0,0.00025205,10]
[380657422,1755840641281,-480.0,0.00025205,10]
[380657423,1755840641290,-480.0,0.00025205,10]
[380657425,1755840641300,-480.0,0.00025205,10]
[380657427,1755840641309,-480.0,0.00025205,10]
[380657429,1755840641318,-480.0,0.00025205,10]
[380657430,1755840641328,-541.90894155,0.00025205,10]
[380657432,1755840641337,-440.69981815,0.00025205,10]
[380657434,1755840641346,-480.0,0.00025205,10]
[380657436,1755840641356,-480.0,0.00025205,10]
[380657437,1755840641365,-480.0,0.00025205,10]
[380657439,1755840641374,-480.0,0.00025205,10]
[380657441,1755840641383,-563.26,0.00025205,10]
[380657442,1755840641392,-480.0,0.00025205,10]
[380657444,1755840641401,-480.0,0.00025205,10]
[380657446,1755840641411,-205.48317323,0.00025205,10]
[380657448,1755840641421,-417.15472785,0.00025205,10]
[380657449,1755840641430,-535.38,0.00025205,10]
[380657451,1755840641440,-480.0,0.00025205,10]
[380657453,1755840641449,-480.0,0.00025205,10]
[380657454,1755840641462,-480.0,0.00025205,10]
[380657456,1755840641471,-480.0,0.00025205,10]
[380657458,1755840641480,-528.9579881,0.00025205,10]
[380657460,1755840641489,-480.0,0.00025205,10]
[380657461,1755840641500,-480.0,0.00025205,10]
[380657463,1755840641509,-480.0,0.00025205,10]
[380657465,1755840641519,-480.0,0.00025205,2]
[380657466,1755840641528,-494.16959343,0.00025205,10]
[380657468,1755840641539,-480.0,0.00025205,10]
[380657470,1755840641549,-482.75999707,0.00025205,10]
[380657472,1755840641558,-480.0,0.00025205,10]
[380657474,1755840641568,-566.391139,0.00025399,2]
[380657475,1755840641577,-2059.56973994,0.00025449,3]
[380657477,1755840641587,-503.02,0.00025469,10]
[380657479,1755840641596,-419.19,0.00025469,10]
[380657481,1755840641606,-500.0,0.00025473,2]
[380657482,1755840641615,-443.46994911,0.00025473,2]
[380657484,1755840641626,-508.82,0.00025478,3]
[380657486,1755840641635,-254.41,0.00025478,3]
[380657488,1755840641645,-763.25,0.00025478,3]
[380657490,1755840641654,-288.14,0.00025478,10]
[380657492,1755840641664,-480.0,0.00025479,10]
[380657493,1755840641673,-480.0,0.00025479,10]
[380657495,1755840641682,-480.0,0.00025479,10]
[380657496,1755840641691,-480.0,0.00025479,10]
[380657498,1755840641701,-488.97680884,0.00025479,10]
[380657500,1755840641710,-480.0,0.00025479,10]
[380657502,1755840641720,-480.0,0.00025479,10]
[380657504,1755840641729,-480.0,0.00025479,10]
[380657506,1755840641738,-157.2748412,0.00025479,10]
[380657507,1755840641747,-480.0,0.00025479,10]
[380657509,1755840641756,-480.0,0.00025479,10]
[380657511,1755840641766,-480.0,0.00025479,10]
[380657513,1755840641776,-480.0,0.00025479,10]
[380657515,1755840641785,-480.0,0.00025479,10]
[380657516,1755840641794,-492.9394538,0.00025479,10]
[380657518,1755840641803,-563.26,0.00025479,10]
[380657520,1755840641813,-482.12818552,0.00025479,10]
[380657522,1755840641822,-448.94571069,0.00025479,10]
[380657524,1755840641832,-535.38,0.00025479,10]
[380657526,1755840641841,-490.1992496,0.00025479,10]
[380657527,1755840641851,-491.15656856,0.00025479,10]
[380657529,1755840641862,-480.0,0.00025479,10]
[380657531,1755840641871,-480.0,0.00025479,10]
[380657533,1755840641882,-480.0,0.00025479,10]
[380657534,1755840641893,-498.95744753,0.00025479,10]
[380657536,1755840641903,-480.0,0.00025479,10]
[380657538,1755840641916,-480.0,0.00025479,2]
[380657539,1755840641928,-527.78427232,0.00025479,10]
[380657541,1755840641938,-480.0,0.00025479,10]
[380657543,1755840641948,-151.450629,0.00025488,7]
[380657545,1755840641957,-151.0,0.00025488,7]
[380657546,1755840641966,-257.236525,0.00025488,7]
[380657548,1755840641976,-151.0,0.00025488,7]
[380657550,1755840641986,-151.0,0.00025488,7]
[380657551,1755840641995,-151.0,0.00025488,7]
[380657553,1755840642006,-152.224263,0.00025488,7]
[380657555,1755840642016,-151.0,0.00025488,7]
[380657557,1755840642025,-151.0,0.00025488,7]
[380657559,1755840642034,-151.0,0.00025488,7]
[380657561,1755840642043,-183.751237,0.00025488,7]
[380657562,1755840642053,-151.0,0.00025488,7]
[380657564,1755840642062,-154.655595,0.00025488,7]
[380657566,1755840642072,-67529.0835167,0.00025488,2]
[380657568,1755840642081,-324.71938108,0.00025488,2]
[380657569,1755840642091,-546.01955398,0.00025489,2]
[380657571,1755840642100,-67529.0835167,0.0002549,2]
[380657573,1755840642113,-324.71938108,0.0002549,2]
[380657575,1755840642122,-151.0,0.0002549,7]
[380657577,1755840642131,-158.220449,0.0002549,7]
[380657579,1755840642141,-151.0,0.0002549,7]
[380657580,1755840642150,-151.0,0.0002549,7]
[380657582,1755840642159,-452.8973562,0.00025498,10]
[380657584,1755840642169,-483.0498722,0.00025498,10]
[380657586,1755840642178,-930.72,0.00025498,10]
[380657588,1755840642187,-487.13115089,0.00025498,10]
[380657589,1755840642196,-481.97077615,0.00025498,10]
[380657591,1755840642205,-2465.27,0.00025498,10]
[380657593,1755840642215,-151.0,0.00025498,7]
[380657595,1755840642224,-151.0,0.00025498,7]
[380657596,1755840642234,-152.612313,0.00025498,7]
[380657598,1755840642243,-480.0,0.00025498,10]
[380657600,1755840642253,-151.0,0.00025498,7]
[380657602,1755840642262,-151.0,0.00025498,7]
[380657604,1755840642271,-161.940122,0.00025498,7]
[380657605,1755840642280,-480.0,0.00025498,10]
[380657607,1755840642289,-480.0,0.00025498,10]
[380657609,1755840642298,-480.0,0.00025498,10]
[380657611,1755840642309,-480.0,0.00025498,10]
[380657613,1755840642318,-480.0,0.00025498,10]
[380657614,1755840642327,-480.0,0.00025498,10]
[380657616,1755840642337,-3167.76,0.00025498,10]
[380657618,1755840642347,-206.669794,0.00025498,7]
[380657620,1755840642356,-206.669794,0.00025498,7]
[380657622,1755840642365,-206.669794,0.00025498,7]
[380657623,1755840642374,-206.669794,0.00025498,7]
[380657625,1755840642384,-151.0,0.00025498,7]
[380657627,1755840642393,-510.13,0.00025498,10]
[380657629,1755840642402,-152.200323,0.00025498,7]
[380657631,1755840642413,-480.0,0.00025498,10]
[380657634,1755840642423,-480.0,0.00025498,10]
[380657636,1755840642433,-480.0,0.00025498,10]
[380657638,1755840642442,-480.0,0.00025498,10]
[380657640,1755840642454,-480.0,0.00025498,10]
[380657642,1755840642464,-485.65676025,0.00025498,10]
[380657644,1755840642474,-480.0,0.00025498,10]
[380657647,1755840642484,-480.0,0.00025498,10]
[380657649,1755840642493,-480.0,0.00025498,10]
[380657651,1755840642504,-480.0,0.00025498,10]
[380657653,1755840642513,-480.0,0.00025498,10]
[380657654,1755840642522,-480.84423824,0.00025498,10]
[380657656,1755840642533,-480.0,0.00025498,10]
[380657658,1755840642543,-480.0,0.00025498,10]
[380657660,1755840642552,-485.90083119,0.00025498,10]
[380657663,1755840642561,-480.0,0.00025498,10]
[380657665,1755840642571,-485.46080944,0.00025498,10]
[380657668,1755840642580,-461.4783893,0.00025498,10]
[380657671,1755840642589,-480.0,0.00025498,10]
[380657674,1755840642598,-482.35750628,0.00025498,10]
[380657677,1755840642609,-480.0,0.00025498,10]
[380657679,1755840642619,-482.02884081,0.00025499,10]
[380657682,1755840642628,-480.0,0.00025499,7]
[380657684,1755840642637,-480.0,0.00025499,10]
[380657686,1755840642646,-481.20582168,0.00025499,10]
[380657695,1755840642732,-481.45915479,0.00025499,10]
[380657697,1755840642750,-484.33888787,0.00025499,10]
[380657699,1755840642760,-481.77194894,0.00025499,10]
[380657701,1755840642770,-348.6642886,0.00025499,10]
[380657702,1755840642779,-421.97807989,0.00025499,10]
[380657704,1755840642788,-280.43555393,0.00025499,10]
[380657706,1755840642797,-310.44180925,0.00025499,10]
[380657708,1755840642807,-494.28959713,0.00025499,10]
[380657709,1755840642816,-422.01259066,0.00025499,10]
[380657711,1755840642826,-480.80907433,0.00025499,10]
[380657713,1755840642835,-480.0,0.00025499,10]
[380657715,1755840642844,-480.0,0.00025499,10]
[380657717,1755840642854,-480.0,0.00025499,10]
[380657718,1755840642863,-151.0,0.00025499,7]
[380657720,1755840642873,-160.573283,0.00025499,7]
[380657722,1755840642882,-248.069751,0.00025499,7]
[380657724,1755840642893,-151.0,0.00025499,7]
[380657726,1755840642902,-480.0,0.00025499,10]
[380657728,1755840642911,-151.0,0.00025499,7]
[380657729,1755840642921,-480.0,0.00025499,10]
[380657731,1755840642930,-482.81520282,0.00025499,10]
[380657733,1755840642939,-151.0,0.00025499,7]
[380657735,1755840642949,-152.88353,0.00025499,7]
[380657737,1755840642958,-480.0,0.00025499,10]
[380657739,1755840642967,-546.6891868,0.00025499,10]
[380657740,1755840642976,-480.0,0.00025499,10]
[380657742,1755840642985,-480.0,0.00025499,10]
[380657744,1755840642994,-471.906056,0.00025499,7]
[380657746,1755840643004,-471.906056,0.00025499,7]
[380657748,1755840643013,-471.906056,0.00025499,7]
[380657749,1755840643022,-471.906056,0.00025499,7]
[380657751,1755840643031,-770.849186,0.00025499,7]
[380657753,1755840643041,-151.0,0.00025499,7]
[380657755,1755840643050,-770.849186,0.00025499,7]
[380657757,1755840643060,-770.849186,0.00025499,7]
[380657759,1755840643070,-770.849186,0.00025499,7]
[380657760,1755840643080,-151.0,0.00025499,7]
[380657762,1755840643089,-151.0,0.00025499,7]
[380657764,1755840643099,-151.0,0.00025499,7]
[380657766,1755840643110,-151.0,0.00025499,7]
[380657768,1755840643119,-480.0,0.00025499,10]
[380657770,1755840643128,-463.19005884,0.00025499,5]
[380657772,1755840643141,-461.56060921,0.00025499,10]
[380657773,1755840643150,-449.63151174,0.00025499,10]
[380657775,1755840643159,-484.92657087,0.00025499,10]
[380657777,1755840643168,-480.0,0.00025499,10]
[380657779,1755840643177,-480.0,0.00025499,10]
[380657781,1755840643187,-483.96287109,0.00025499,10]
[380657783,1755840643197,-483.5030486,0.00025499,10]
[380657784,1755840643206,-480.0,0.00025499,10]
[380657786,1755840643216,-480.0,0.00025499,10]
[380657788,1755840643226,-450.55549642,0.00025499,10]
[380657790,1755840643235,-480.0,0.00025499,10]
[380657792,1755840643245,-448.82530846,0.00025499,10]
[380657794,1755840643254,-431.37101017,0.00025499,10]
[380657795,1755840643263,-441.0681735,0.00025499,10]
[380657797,1755840643272,-480.0,0.00025499,10]
[380657799,1755840643282,-481.05676756,0.00025499,10]
[380657801,1755840643291,-151.0,0.00025499,7]
[380657803,1755840643300,-480.0,0.00025499,10]
[380657805,1755840643309,-480.0,0.00025499,10]
[380657806,1755840643318,-480.0,0.00025499,10]
[380657808,1755840643327,-358.95535466,0.00025499,10]
[380657810,1755840643336,-1767.99,0.00025499,10]
[380657813,1755840643345,-480.0,0.00025499,10]
[380657815,1755840643355,-480.0,0.00025499,10]
[380657817,1755840643364,-151.0,0.00025499,7]
[380657818,1755840643373,-480.0,0.00025499,10]
[380657820,1755840643383,-480.0,0.00025499,10]
[380657822,1755840643392,-480.0,0.00025499,10]
[380657824,1755840643402,-462.8252102,0.00025499,10]
[380657826,1755840643412,-480.0,0.00025499,10]
[380657828,1755840643421,-480.0,0.00025499,10]
[380657829,1755840643430,-2266.93,0.00025499,10]
[380657831,1755840643440,-481.33975563,0.00025499,10]
[380657833,1755840643449,-206.669794,0.00025499,7]
[380657835,1755840643458,-279.7821329,0.00025499,10]
[380657837,1755840643472,-206.669794,0.00025499,7]
[380657838,1755840643481,-480.0,0.00025499,10]
[380657840,1755840643491,-206.669794,0.00025499,7]
[380657842,1755840643500,-206.669794,0.00025499,7]
[380657844,1755840643509,-151.0,0.00025499,7]
[380657846,1755840643519,-480.0,0.00025499,10]
[380657848,1755840643528,-480.0,0.00025499,10]
[380657849,1755840643538,-480.0,0.00025499,10]
[380657851,1755840643548,-480.0,0.00025499,10]
[380657853,1755840643558,-462.86317608,0.00025499,10]
[380657855,1755840643567,-461.01674148,0.00025499,10]
[380657857,1755840643577,-480.0,0.00025499,10]
[380657859,1755840643586,-480.0,0.00025499,10]
[380657861,1755840643595,-480.0,0.00025499,10]
[380657863,1755840643604,-417.15472785,0.00025499,10]
[380657864,1755840643613,-480.0,0.00025499,10]
[380657866,1755840643623,-152.710702,0.00025499,7]
[380657868,1755840643632,-480.0,0.00025499,10]
[380657870,1755840643642,-482.54588106,0.00025499,10]
[380657872,1755840643651,-480.0,0.00025499,10]
[380657874,1755840643660,-480.0,0.00025499,10]
[380657875,1755840643670,-162.54463149,0.00025499,10]
[380657877,1755840643679,-480.0,0.00025499,10]
[380657879,1755840643689,-480.0,0.00025499,10]
[380657881,1755840643698,-480.0,0.00025499,2]
[380657883,1755840643707,-480.0,0.00025499,10]
[380657885,1755840643717,-462.86254574,0.00025499,10]
[380657887,1755840643726,-151.0,0.00025499,7]
[380657888,1755840643735,-122.49942067,0.00025499,7]
[380657901,1755840643870,-256.2,0.00025498,10]
[380658026,1755840646095,-455.43777871,0.00024657,10]
[380658028,1755840646107,-24.56222129,0.00024657,10]